Cogmind - Beta 14 @@@ ROGUE MODE // 2024.08.31 @ 14:32:17 Player: MOPO3 Result: Self-destructed Performance ------------- Evolutions (1) 500 Regions Visited (4) 800 Robots Destroyed (26) 130 Value Destroyed (562) 562 Prototype IDs (1) 20 Alien Tech Used (0) 0 Bonus (149) 149 TOTAL SCORE: 2161 Bonus ------- Follower Combat Kills 149 Cogmind --------- Core Integrity 188/400 Matter 281/300 Energy 100/100 System Corruption 0% Temperature Cool (0) Movement Core (150) Ox2 Location -9/Mines Parts ------- > --- POWER (1) -------- (None) > --- PROPULSION (3) --- (None) > --- UTILITY (3) ------ Small Storage Unit Signal Interpreter > --- WEAPON (2) ------- Grenade Launcher > --- INVENTORY (8) ---- Light Ion Engine Wheel Compact Wheel ECM Suite Heavy Hammer Peak State ------------ > --- POWER ------------ Cooled Ion Engine > --- PROPULSION ------- Wheel Wheel Armored Wheel > --- UTILITY ---------- Small Storage Unit Signal Interpreter Light Armor Plating > --- WEAPON ----------- EM Pulse Gun Assault Rifle > --- INVENTORY -------- Ion Engine Ion Engine Ion Engine Wheel Wheel ECM Suite EM Pulse Gun Grenade Launcher [Rating: 12] Favorites ----------- Power Ion Engine Engine Ion Engine Propulsion Wheel Wheel Wheel Utility Small Storage Unit Device ECM Suite Storage Small Storage Unit Processor Signal Interpreter Protection Light Armor Plating Weapon EM Pulse Gun Energy Gun EM Pulse Gun Ballistic Gun Heavy Assault Rifle Launcher Grenade Launcher Impact Weapon Heavy Hammer Build | -11 -10 -10 -9 -9 ------- Run | Yrd Mat Min Mat Min Slots Evolved 2 | . . . 2 . Power . | . . . . . Propulsion 1 | . . . 1 . Utility 1 | . . . 1 . Weapon . | . . . . . Parts Attached 41 | 6 2 . 28 5 Power 6 | 1 . . 4 1 Engine 6 | 1 . . 4 1 Core . | . . . . . Reactor . | . . . . . Propulsion 14 | 2 . . 11 1 Treads . | . . . . . Leg . | . . . . . Wheel 14 | 2 . . 11 1 Hover . | . . . . . Flight . | . . . . . Utility 8 | 1 2 . 4 1 Device 2 | . 2 . . . Storage 1 | 1 . . . . Processor 1 | . . . 1 . Hackware . | . . . . . Protection 4 | . . . 3 1 Artifact . | . . . . . Weapon 13 | 2 . . 9 2 Energy Gun 4 | 1 . . 3 . Energy Cannon . | . . . . . Ballistic Gun 4 | 1 . . 2 1 Ballistic Cannon . | . . . . . Launcher 2 | . . . 1 1 Special Weapon . | . . . . . Impact Weapon 3 | . . . 3 . Slashing Weapon . | . . . . . Piercing Weapon . | . . . . . Special Melee Weapon . | . . . . . Unidentified Prototypes 1 | . . . 1 . Parts Lost 13 | . . . 2 11 Power 2 | . . . . 2 Propulsion 5 | . . . 1 4 Utility 2 | . . . . 2 Weapon 4 | . . . 1 3 Highest Loss Streak 8 | . . . 1 8 To Critical Strikes . | . . . . . Average Slot Usage (%) 97 | . 97 100 98 91 Engine 11 | . 14 14 10 9 Wheel 30 | . 28 28 32 29 Device 4 | . 11 14 1 . Storage 11 | . 14 14 11 11 Processor 7 | . . . 10 11 Protection 6 | . . . 9 9 Energy Gun 9 | . 14 14 9 1 Ballistic Gun 11 | . 14 14 8 16 Launcher 1 | . . . 1 . Impact Weapon 1 | . . . 2 . Peak Build Rating 12 | 6 7 7 12 11 Average Rating 9 | 4 6 7 10 9 On Entrance 6 | . 6 7 7 11 Naked Turns . | . . . . . Heaviest Build 21 | 14 16 16 21 20 Greatest Support 32 | 32 32 32 32 30 Greatest Overweight (x) 4 | 4 . . 1 . Average Overweight (x) . | . . . . . Largest Inventory Capacity 8 | 8 8 8 8 8 Average Capacity 7 | 7 8 8 8 8 Most Carried 8 | 2 8 8 8 7 Average Carried 6 | 1 5 8 7 6 Final Capacity 8 | 8 8 8 8 8 Final Carried 8 | 2 8 8 7 5 Class Distribution -------------------- 59% | Scavenger-Mutant 40% | Mutant Dominant Class ---------------- Mutant | -10/Materials Mutant | -10/Mines Scavenger-Mutant | -9/Materials Scavenger-Mutant | -9/Mines Resources | -11 -10 -10 -9 -9 ----------- Run | Yrd Mat Min Mat Min Matter Collected 865 | 211 108 . 403 143 Remotely . | . . . . . Salvage Created 884 | . 177 . 447 260 Parts 61 | . 11 . 33 17 Haulers Intercepted . | . . . . . Recyclers Shooed 1 | . 1 . . . Parts Field Recycled . | . . . . . Retrieved Matter . | . . . . . Parts Self-Destructed . | . . . . . Prevented . | . . . . . Kills | -11 -10 -10 -9 -9 ------- Run | Yrd Mat Min Mat Min Combat Hostiles Destroyed 17 | . 2 . 9 6 Guns 15 | . 2 . 7 6 AOE 2 | . . . 2 . Classes Destroyed 7 | . 3 . 1 3 Worker 6 | . 2 . 3 1 Builder 1 | . . . . 1 Tunneler 1 | . 1 . . . Recycler 1 | . . . . 1 Swarmer 4 | . . . . 4 Grunt 10 | . 2 . 6 2 Sentry 3 | . . . 3 . Best Kill Streak 6 | . 3 . 4 6 Combat Bots Only 4 | . 2 . 3 4 Max Kills in Single Turn 1 | . 1 . 1 1 Gunslinging . | . . . . . Exploded 1 | . . . 1 . Melee . | . . . . . Uniques/NPCs Destroyed . | . . . . . Combat | -11 -10 -10 -9 -9 -------- Run | Yrd Mat Min Mat Min Hostile Shots Fired 106 | . 11 . 51 44 Missed 27 | . 1 . 13 13 Damage Taken 1348 | . 138 . 476 734 Core 279 | . 67 . 70 142 Absorbed by Shields . | . . . . . Regen/Repaired (Parts) 181 | . . . 181 . Core Remaining (%) 86 | 100 . 73 . . Volleys Fired 74 | . 13 . 29 32 Largest 2 | . 2 . 2 2 Hottest 63 | . 60 . 63 63 Shots Fired 123 | . 26 . 50 47 Gun 114 | . 26 . 42 46 Cannon . | . . . . . Launcher 9 | . . . 8 1 Special . | . . . . . Kinetic 75 | . 13 . 21 41 Thermal . | . . . . . Explosive 9 | . . . 8 1 Electromagnetic 39 | . 13 . 21 5 Robot Hit Streak 24 | . 14 . 24 10 Robot Miss Streak 3 | . 1 . 1 3 Penetration Max . | . . . . . Secondary Targets 1 | . . . 1 . Max Gunslinging Chain 1 | . . . 1 . Shots Hit Robots 88 | . 19 . 39 30 Core Hits 41 | . 9 . 22 10 Critical Kills 1 | . . . 1 . Critical Parts Destroyed . | . . . . . Critical Strikes 1 | . . . 1 . Smash 1 | . . . 1 . Melee Attacks 8 | . . . 8 . Impact 8 | . . . 8 . Slashing . | . . . . . Piercing . | . . . . . Sneak Attacks 1 | . . . 1 . Combat Hostiles . | . . . . . Follow-up Attacks . | . . . . . Damage Inflicted 1718 | . 307 . 861 550 Guns 1210 | . 262 . 526 422 Cannons . | . . . . . Explosions 386 | . 45 . 213 128 Melee 122 | . . . 122 . Ramming . | . . . . . Kinetic 747 | . 89 . 270 388 Thermal 158 | . 45 . . 113 Explosive 228 | . . . 213 15 Electromagnetic 463 | . 173 . 256 34 Impact 122 | . . . 122 . Slashing . | . . . . . Piercing . | . . . . . Highest Corruption . | . . . . . Average Corruption . | . . . . . Corruption Purged . | . . . . . Corruption Blocked . | . . . . . Overload Shots . | . . . . . Overflow Damage 39 | . . . . 39 Projectiles . | . . . . . Explosions 39 | . . . . 39 Melee . | . . . . . Knockbacks . | . . . . . Impact . | . . . . . Kinetic . | . . . . . Secondary . | . . . . . Self-Inflicted Damage 46 | . 17 . . 29 Shots 2 | . 1 . . 1 Rammed . | . . . . . Targets Rammed . | . . . . . Kicked . | . . . . . Crushed . | . . . . . Highest Temperature 120 | . 72 . 120 32 Average Temperature 36 | . 44 . 38 14 Received Heat Transfer 327 | . 75 . 240 12 Siege Activations . | . . . . . Robots Corrupted . | . . . . . Combat Hostiles . | . . . . . Parts Fried . | . . . . . Impact Corruptions . | . . . . . Robots Melted . | . . . . . Combat Hostiles . | . . . . . Parts Melted . | . . . . . Heat Transferred 250 | . 100 . . 150 Parts Sabotaged . | . . . . . Parts Stolen . | . . . . . Parts Stripped . | . . . . . Power Chain Reactions 2 | . 1 . . 1 Alert | -11 -10 -10 -9 -9 ------- Run | Yrd Mat Min Mat Min Peak Influence 208 | . 131 51 208 171 Initial 51 | . . 51 19 40 Average 72 | . 54 51 79 110 Maximum Alert Level 1 | . . . 1 . Low Security (%) 99 | 100 100 100 98 100 Level 1 . | . . . 1 . Level 2 . | . . . . . Level 3 . | . . . . . Level 4 . | . . . . . Level 5 . | . . . . . High Security . | . . . . . Max Security . | . . . . . Squads Dispatched 3 | . . . 2 1 Investigation 1 | . . . 1 . Extermination . | . . . . . Reinforcement 2 | . . . 1 1 Assault . | . . . . . Garrison . | . . . . . Intercept . | . . . . . Searches Triggered . | . . . . . Construction Impeded 1 | . . . . 1 Haulers Reinforced . | . . . . . Active Scanning Responses . | . . . . . Cargo Convoy Interrupts . | . . . . . Stealth | -11 -10 -10 -9 -9 --------- Run | Yrd Mat Min Mat Min Distress Signals 6 | . . . 5 1 Communications Jammed . | . . . . . Distress Signals . | . . . . . Times Spotted 36 | . 6 . 22 8 Peak Tracking Total 6 | . 3 . 6 4 Tactical Retreats 2 | . . . 1 1 Traps | -11 -10 -10 -9 -9 ------- Run | Yrd Mat Min Mat Min Traps Triggered . | . . . . . Indirectly . | . . . . . Trap Hack Attempts . | . . . . . Triggered . | . . . . . Disarmed . | . . . . . Reprogrammed . | . . . . . Reused . | . . . . . Traps Extracted . | . . . . . Installed . | . . . . . Triggered . | . . . . . Machines | -11 -10 -10 -9 -9 ---------- Run | Yrd Mat Min Mat Min Machines Disabled 1 | . . . 1 . Max in Single Turn 1 | . . . 1 . Machines Repaired . | . . . . . Machines Dismantled . | . . . . . Machines Sabotaged . | . . . . . Overloaded Fab Kills . | . . . . . Hacking | -11 -10 -10 -9 -9 --------- Run | Yrd Mat Min Mat Min Machines Accessed 13 | . 6 . 7 . Terminals 10 | . 5 . 5 . Fabricators . | . . . . . Repair Stations 1 | . . . 1 . Recycling Units 2 | . 1 . 1 . Scanalyzers . | . . . . . Garrison Access . | . . . . . Total Hacks 47 | . 17 . 30 . Successful 27 | . 8 . 19 . Failed 20 | . 9 . 11 . Catastrophic 3 | . 3 . . . Database Lockouts . | . . . . . Manual 29 | . 13 . 16 . Terminals 29 | . 14 . 15 . Fabricators . | . . . . . Repair Stations 12 | . . . 12 . Recycling Units 6 | . 3 . 3 . Scanalyzers . | . . . . . Garrison Access . | . . . . . Terminal Hacks 6 | . 3 . 3 . Record 1 | . 1 . . . Branch Access Points 2 | . 1 . 1 . Unreport Threat 2 | . . . 2 . Registered Components 1 | . 1 . . . Fabricator Hacks . | . . . . . Repair Station Hacks 10 | . . . 10 . Scan Component 5 | . . . 5 . Repair 5 | . . . 5 . Recycling Unit Hacks 3 | . 1 . 2 . Retrieve Components 3 | . 1 . 2 . Scanalyzer . | . . . . . Garrison Access Hacks . | . . . . . Unauthorized Hacks 8 | . 4 . 4 . Terminals 8 | . 4 . 4 . Botnet 8 | . 4 . 4 . Fabricators . | . . . . . Repair Stations . | . . . . . Recycling Units . | . . . . . Scanalyzers . | . . . . . Garrison Access . | . . . . . Data Cores Recovered . | . . . . . Used . | . . . . . Hacking Detections 12 | . 6 . 6 . Full Trace Events 4 | . 1 . 3 . Feedback Events . | . . . . . Feedback Blocked . | . . . . . Robot Schematics Acquired . | . . . . . Robots Built . | . . . . . Authchips . | . . . . . Time . | . . . . . Total Robot Build Rating . | . . . . . Part Schematics Acquired . | . . . . . Parts Built . | . . . . . Authchips . | . . . . . Time . | . . . . . Total Part Build Rating . | . . . . . Parts Repaired 5 | . . . 5 . Time 136 | . . . 136 . Parts Recycled . | . . . . . Recycled Matter . | . . . . . Retrieved Matter . | . . . . . Retrieved Components 6 | . 6 . . . Parts Scanalyzed . | . . . . . Part Schematics Acquired . | . . . . . Parts Damaged . | . . . . . Bothacking | -11 -10 -10 -9 -9 ------------ Run | Yrd Mat Min Mat Min Used RIF Installer . | . . . . . Robots Hacked . | . . . . . Non-combat . | . . . . . Combat . | . . . . . Robot Hacks Applied . | . . . . . Relay Couplers Released . | . . . . . Fabnet Peak Effective % . | . . . . . Robots Rewired . | . . . . . Allies Hacked . | . . . . . Hacks Repelled . | . . . . . Allies | -11 -10 -10 -9 -9 -------- Run | Yrd Mat Min Mat Min Total Allies 5 | . . 3 . 2 Largest Group 3 | . . 3 3 2 Highest-Rated Group 47 | . . 40 40 47 Highest-Rated Ally 31 | . . 16 16 31 Total Orders . | . . . . . Ally Attacks 34 | . . . 29 5 Total Damage 402 | . . . 337 65 Kills 6 | . . . 6 . Allies Corrupted . | . . . . . Allies Melted . | . . . . . Intel | -11 -10 -10 -9 -9 ------- Run | Yrd Mat Min Mat Min Robot Analysis Total . | . . . . . Derelict Logs Recovered 2 | . . 1 . 1 Drone Launches . | . . . . . Drone Recoveries . | . . . . . Exploration | -11 -10 -10 -9 -9 ------------- Run | Yrd Mat Min Mat Min Turns Passed 1521 | 55 345 108 842 171 Spaces Moved 1058 | 40 272 99 543 104 Core 13 | 13 . . . . Treads . | . . . . . Legs . | . . . . . Wheels 1045 | 27 272 99 543 104 Hover . | . . . . . Flight . | . . . . . Fastest Speed 50 | 50 100 100 80 80 Average Speed 88 | 111 100 100 80 80 Slowest Speed 250 | 250 100 100 95 80 Overloaded Moves . | . . . . . Propulsion Burnouts . | . . . . . Robots Hopped . | . . . . . Cave-ins Triggered . | . . . . . Exploration Rate (%) 31 | 4 49 35 37 31 Regions Visited 4 Branch Regions 2 Pre-discovered Areas 1 | . . . . 1 Known Exits Taken 2 | . 1 . 1 . Unknown Exits Taken 2 | 1 . 1 . . Scrap Searched 1 | . . . . 1 Spaces Dug 4 | . . . 4 . Terrain Destroyed 44 | . 6 . 27 11 Melee 4 | . . . 4 . Projectile . | . . . . . AOE 40 | . 6 . 23 11 Terrain Rammed . | . . . . . Walls Destroyed . | . . . . . Machines Disabled . | . . . . . Actions | -11 -10 -10 -9 -9 --------- Run | Yrd Mat Min Mat Min Total 1502 | 47 318 108 885 144 Wait 281 | . 24 10 247 . Move 1054 | 39 271 98 542 104 Hop . | . . . . . Pick Up 26 | 2 7 . 14 3 Fast Attach 14 | 6 1 . 7 . Attach 11 | . . . 6 5 Detach . | . . . . . Swap 16 | . 1 . 15 . Drop 18 | . 1 . 17 . Fire 74 | . 13 . 29 32 Melee 8 | . . . 8 . Ram . | . . . . . Kick . | . . . . . Crush . | . . . . . Escape Stasis . | . . . . . Rewire . | . . . . . Trap . | . . . . . Miscellaneous . | . . . . . Route ------- -11/Scrapyard -10/Materials (discovered 3 exits: *Mat x2 / *Min) -10/Mines -9/Materials (discovered 3 exits: *Mat / *Min x2) -9/Mines (discovered 1 exit: *Mat) History --------- Turn | Location | Event 17 | -11/Scrapyard | Discovered new exit (range 16) 56 | -11/Scrapyard | Entered Materials 95 | -10/Materials | Identified exit to Mines 153 | -10/Materials | Discovered new exit (range 7) 315 | -10/Materials | Build established: Mutant 316 | -10/Materials | Discovered new exit (range 15) 401 | -10/Materials | Entered Mines 438 | -10/Mines | Learned location of 1 exit from Materials 458 | -10/Mines | Assisted by bots powering up and referring to "LRC-V3" 483 | -10/Mines | Discovered new exit (range 15) 509 | -10/Mines | Entered Materials 509 | -9/Materials | Accompanied by 3 allies 509 | -9/Materials | Evolved 2 slots: Propulsion x1, Utility x1 510 | -9/Materials | Identified exit to Mines 563 | -9/Materials | Discovered exit to Mines (range 15) 800 | -9/Materials | Discovered new exit (range 14) 811 | -9/Materials | Identified exit to Materials 887 | -9/Materials | Repaired ECM Suite 914 | -9/Materials | Repaired Wheel 935 | -9/Materials | Build established: Scavenger-Mutant 942 | -9/Materials | Repaired Ion Engine 1193 | -9/Materials | Repaired Lgt. Armor Plating 1226 | -9/Materials | Repaired Hvy. Assault Rifle 1351 | -9/Materials | Entered Mines 1426 | -9/Mines | Lost 3 parts (1p1u1w) 1439 | -9/Mines | Assembled infested the area 1444 | -9/Mines | Learned location of Zion (-6) 1480 | -9/Mines | Discovered exit to Materials (range 10) 1521 | -9/Mines | Core integrity fell below 50% 1522 | -9/Mines | Self-destructed Last Messages --------------- EXIT=FOUND: MATERIALS Acquired Wheel. Wheel destroyed. A pair of derelicts emerge from the shadows: "We're, um, lost. You wouldn't happen to know the way out of here, would you?" K-01 Serf collects debris. K-01 Serf destroyed. Searching scrap... Found Hcp. Battery. Found Datajack. Found 52 Matter. Acquired 10 matter. Hvy. Assault Rifle destroyed. Wheel destroyed. Lgt. Armor Plating destroyed. Wheel destroyed. The unstable cave ceiling collapses. Hvy. Assault Rifle destroyed. Ion Engine destroyed. D-53 Grenadier destroyed. Map ----- +----------------------------------------------------+ | | | | | | | | | | | | | | | | | | | | | | | | | | | | | | | | | | | | | | | | | | | ??????## ##???????????????????? | | ?????## ##??????????????????? | | ????## #??????????????????? | | ???## #??????????????????? | | ???#! @ #??????##??????????? | | ???#%/ #??## ##?????????? | | ???### ##? #?????????? | | ?????## d #? #?????????? | | ??????## ## #?????????? | | ???????#### # #?????????? | | ??????????? #?????????? | | ??????????# #??????????? | | ?????????## ####??????????? | | ?????##### ##?????????????? | | ????## # ##??????????????? | | ????# # ####???????????????? | | ????# < !# #??????????????????? | | ????## # # ##??????????????????? | | ????# ##??#???????????????????? | | ???# #??????????????????????? | | ???## ##??????????????????????? | | ????## #???????????????????????? | | ?????# ##??????????#????????????? | | ?????## ##?????????? #????????????? | | ??????# #????????? #????????????? | | ????###%######### #????????????? | | ????# #????????????? | | ????# * #????????????? | | ????# #####[#### #?????? ?????? | +----------------------------------------------------+ Best States ------------- Heat Dissipation 28 Energy Generation 12 Energy Capacity 265 Matter Stores 300 Matter Capacity 300 Sight Range 16 Robot Scan Range 14 Terrain Scan Density 10 ECM Strength 1 Armor Coverage 150 Evasion (%) 44 Item Schematics ----------------- None Robot Schematics ------------------ None Fabricated ------------ Nothing Alien Tech Used ----------------- None Achievements -------------- None Challenges ------------ None Game ------ Seed SiegeImpactAirjet Manual? 0 Play Time 00:21:22 Cumulative 24.0 hours Start 2024.08.31 @ 14:12:57 End 2024.08.31 @ 14:32:17 Sessions 1 Manual Loads 0 Difficulty Rogue Special Mode None Game No. 35 Rogue 35 Adventurer 0 Explorer 0 Win Type - Total 0 Types 0/0/0/0/0/0/0/0/0 Lore% 14 Gallery% 25 Achievement% 24 Wizard Run 0 Options --------- Layout 0 ASCII 0 Keyboard 0 Movement Numpad Keybinds 0 Fullscreen 1 Font 18/Cog Map View 76x50 Zoom Use 0% Tactical HUD 0 Map Filters NONE Filters NONE Steam 1 RUN: a99a0c3b-6457-4eb3-940d-e1e3107ae755